bitfinex-derivatives/quotes_BTCF0:USTF0_20260106
["timestamp","ask_amount","ask_price","bid_price","bid_amount"]
[1767664955458,0.01670522,93923.0,93902.0,0.01602206]
[1767664955763,0.010648,93919.0,93904.0,0.01602206]
[1767664956158,0.010647,93922.0,93904.0,0.01602206]
[1767664957463,0.010647,93920.0,93904.0,0.01602206]
[1767664958058,0.010647,93920.0,93903.0,0.10893234]
[1767664958059,0.01670522,93922.0,93900.0,0.10658206]
[1767664958264,0.010648,93914.0,93901.0,0.01602206]
[1767664958559,0.010648,93914.0,93902.0,0.01602206]
[1767664958760,0.010648,93914.0,93904.0,0.01602206]
[1767664958966,0.010647,93925.0,93905.0,0.01602206]
[1767664959167,0.010647,93920.0,93905.0,0.01602206]
[1767664962164,0.010646,93935.0,93918.0,0.010648]
[1767664962357,0.010647,93928.0,93916.0,0.09828334]
[1767664962559,0.01670522,93933.0,93913.0,0.01602206]
[1767664962763,0.010646,93928.0,93913.0,0.01602206]
[1767664963168,0.010647,93926.0,93913.0,0.01602206]
[1767664963366,0.010647,93924.0,93909.0,0.10658206]
[1767664963566,0.01670522,93928.0,93909.0,0.10658206]
[1767664963770,0.01670522,93927.0,93909.0,0.09056]
[1767664964675,0.01670522,93924.0,93909.0,0.09056]
[1767664965073,0.010647,93920.0,93909.0,0.09056]
[1767664966972,0.09789492,93925.0,93909.0,0.09056]
[1767664967179,0.010646,93933.0,93900.0,0.1143054]
[1767664967180,0.11460014,93922.0,93900.0,0.1143054]
[1767664967368,0.01670522,93919.0,93901.0,0.09056]
[1767664967568,0.01670522,93923.0,93903.0,0.01602206]
[1767664967768,0.010648,93917.0,93904.0,0.01602206]
[1767664968080,0.09056,93936.0,93906.0,0.09828334]
[1767664968265,0.010646,93932.0,93918.0,0.1143054]
[1767664968465,0.010646,93932.0,93914.0,0.01602206]
[1767664968975,0.010646,93932.0,93915.0,0.01602206]
[1767664969277,0.01670522,93935.0,93916.0,0.010648]
[1767664969972,0.01670522,93935.0,93918.0,0.010648]
[1767664970676,0.010648,93917.0,93899.0,0.00212996]
[1767664970975,0.010647,93921.0,93901.0,0.010649]
[1767664971280,0.010648,93918.0,93902.0,0.09056]
[1767664971671,0.010647,93921.0,93902.0,0.09056]
[1767664972268,0.09056,93936.0,93902.0,0.09056]
[1767664972577,0.11460014,93928.0,93904.0,0.01275671]
[1767664972781,0.09789492,93928.0,93909.0,0.11104005]
[1767664972970,0.09789492,93928.0,93910.0,0.01275671]
[1767664973478,0.09789492,93928.0,93910.0,0.02340571]
[1767664973980,0.010647,93927.0,93910.0,0.01275671]
[1767664974675,0.09789492,93928.0,93907.0,0.01322954]
[1767664974874,0.11674756,93928.0,93907.0,0.01322954]
[1767664975979,0.11019231,93927.0,93907.0,0.01322954]
[1767664976167,0.12083931,93927.0,93908.0,0.010649]
[1767664976689,0.11019231,93927.0,93910.0,0.010648]
[1767664977385,0.11019231,93927.0,93907.0,0.01322954]
[1767664977570,0.010647,93926.0,93907.0,0.01322954]
[1767664977766,0.01885264,93926.0,93907.0,0.01322954]
[1767664977980,0.010648,93919.0,93904.0,0.01260549]
[1767664978178,0.010647,93922.0,93905.0,0.010649]
[1767664979476,0.11019231,93920.0,93902.0,0.09056]
[1767664979887,0.11019231,93920.0,93902.0,0.10294155]
[1767664979888,0.010648,93918.0,93902.0,0.10294155]
[1767664980066,0.09133967,93920.0,93903.0,0.010649]
[1767664980271,0.09133967,93920.0,93903.0,0.02303055]
[1767664980471,0.09133967,93926.0,93906.0,0.010649]
[1767664980666,0.010647,93922.0,93904.0,0.01209443]
[1767664980872,0.01880722,93922.0,93902.0,0.09056]
[1767664981083,0.010648,93918.0,93903.0,0.010649]
[1767664981578,0.11824253,93922.0,93902.0,0.101209]
[1767664981777,0.010648,93917.0,93902.0,0.09056]
[1767664982587,0.010647,93920.0,93903.0,0.010649]
[1767664982771,0.11824253,93921.0,93905.0,0.010649]
[1767664983181,0.09943531,93921.0,93905.0,0.02239282]
[1767664983575,0.010647,93920.0,93905.0,0.02239282]
[1767664983772,0.11824253,93921.0,93902.0,0.10211604]
[1767664983973,0.11824253,93898.0,93875.0,0.06196371]
[1767664984173,0.12889253,93898.0,93876.0,0.09056]
[1767664984378,0.12889253,93898.0,93880.0,0.010652]
[1767664984579,0.01065,93897.0,93879.0,0.010652]
[1767664984886,0.11008631,93893.0,93876.0,0.09056]
[1767664985886,0.09943531,93893.0,93876.0,0.09056]
[1767664986077,0.09943531,93893.0,93877.0,0.00334224]
[1767664986276,0.09943531,93893.0,93879.0,0.00112067]
[1767664986477,0.1153439,93893.0,93879.0,0.00112067]
[1767664986885,0.1153439,93893.0,93882.0,0.010652]
[1767664987477,0.1153439,93893.0,93879.0,0.00112067]
[1767664987478,0.09943531,93893.0,93885.0,0.010651]
[1767664987782,0.09943531,93893.0,93879.0,0.00112067]
[1767664987783,0.09943531,93893.0,93881.0,0.010652]
[1767664988576,0.01880722,93906.0,93881.0,0.00075621]
[1767664988777,0.01880722,93912.0,93895.0,0.01065]
[1767664988975,0.10936722,93911.0,93895.0,0.01065]
[1767664989180,0.01880722,93910.0,93895.0,0.01065]
[1767664989888,0.01666905,93911.0,93898.0,0.01065]
[1767664990186,0.01880722,93911.0,93898.0,0.01065]
[1767664990588,0.11824253,93910.0,93898.0,0.01065]
[1767664991078,0.11824253,93909.0,93895.0,0.01065]
[1767664991481,0.11824253,93909.0,93889.0,0.09926035]
[1767664991876,0.11824253,93908.0,93887.0,0.0037924]
[1767664992082,0.11824253,93902.0,93886.0,0.09056]
[1767664992290,0.11824253,93902.0,93893.0,0.01065]
[1767664992490,0.09943531,93902.0,93893.0,0.01065]
[1767664995284,0.01643324,93911.0,93905.0,0.010649]
[1767664995484,0.010647,93926.0,93908.0,0.010649]
[1767664995881,0.09056,93925.0,93905.0,0.010649]
[1767664996283,0.010647,93923.0,93905.0,0.010649]
[1767664997195,0.09943531,93922.0,93905.0,0.010649]
[1767664997584,0.01880722,93921.0,93905.0,0.010649]
[1767664998082,0.01880722,93921.0,93901.0,0.09809415]
[1767664998282,0.01880722,93920.0,93903.0,0.010649]
[1767664998892,0.01880722,93920.0,93905.0,0.010649]
[1767665000695,0.02945522,93919.0,93902.0,0.010649]
[1767665000896,0.01880722,93918.0,93902.0,0.010649]
[1767665001693,0.01880722,93917.0,93901.0,0.01065]
[1767665002893,0.01880722,93917.0,93904.0,0.010649]
[1767665003590,0.01880722,93917.0,93907.0,0.010649]
[1767665003989,0.11824253,93921.0,93907.0,0.010649]
[1767665004196,0.01880722,93919.0,93907.0,0.010649]
[1767665004695,0.01880722,93918.0,93897.0,0.10984139]
[1767665004995,0.01880722,93918.0,93904.0,0.010649]
[1767665005197,0.01880722,93918.0,93906.0,0.010649]
[1767665005586,0.01880722,93918.0,93910.0,0.010648]
[1767665005895,0.03514562,93925.0,93909.0,0.010649]
[1767665006088,0.01880722,93924.0,93906.0,0.010649]
[1767665006395,0.01880722,93922.0,93908.0,0.010649]
[1767665006789,0.01880722,93920.0,93905.0,0.010649]
[1767665006995,0.01880722,93918.0,93897.0,0.10121]
[1767665007210,0.01880722,93903.0,93881.0,0.09546795]
[1767665007491,0.01880722,93902.0,93882.0,0.101212]
[1767665007893,0.01065,93897.0,93882.0,0.09056]
[1767665008098,0.01880722,93896.0,93882.0,0.09056]
[1767665008300,0.01880722,93896.0,93882.0,0.101212]
[1767665009191,0.01880722,93901.0,93882.0,0.101212]
[1767665011296,0.01880722,93901.0,93886.0,0.010651]
[1767665011602,0.02338819,93905.0,93890.0,0.09809415]
[1767665012695,0.03403719,93904.0,93890.0,0.09809415]
[1767665013094,0.01065,93901.0,93890.0,0.09809415]
[1767665013287,0.02338819,93900.0,93884.0,0.010651]
[1767665013491,0.12063662,93900.0,93882.0,0.09056]
[1767665013693,0.02338819,93897.0,93882.0,0.09056]
[1767665014210,0.01065,93898.0,93882.0,0.09056]
[1767665015603,0.101209,93904.0,93886.0,0.010651]
[1767665015803,0.01065,93902.0,93886.0,0.010651]
[1767665016196,0.03403819,93902.0,93886.0,0.010651]
[1767665016605,0.02338819,93902.0,93886.0,0.010651]
[1767665021119,0.02338819,93902.0,93890.0,0.09809415]
[1767665021408,0.09056,93904.0,93890.0,0.09809415]
[1767665021807,0.11394819,93904.0,93890.0,0.09809415]
[1767665022009,0.11394819,93904.0,93891.0,0.010651]
[1767665022208,0.11394819,93904.0,93890.0,0.09809415]
[1767665023309,0.11394819,93904.0,93891.0,0.010651]
[1767665024002,0.03403719,93902.0,93890.0,0.09809415]
[1767665024204,0.09056,93904.0,93890.0,0.09809415]
[1767665024616,0.11394819,93904.0,93890.0,0.09809415]
[1767665026812,0.010648,93915.0,93897.0,0.12182473]
[1767665027013,0.09056,93914.0,93897.0,0.12182473]
[1767665027310,0.010648,93911.0,93897.0,0.0990636]
[1767665027516,0.02338819,93898.0,93882.0,0.09056]
[1767665027813,0.02338819,93898.0,93885.0,0.010651]
[1767665028014,0.01065,93901.0,93885.0,0.010651]
[1767665029406,0.01065,93901.0,93882.0,0.12397313]
[1767665029717,0.01065,93901.0,93884.0,0.010651]
[1767665031218,0.01065,93901.0,93886.0,0.010651]
[1767665031517,0.13128562,93905.0,93890.0,0.09809415]
[1767665031717,0.01065,93902.0,93890.0,0.09809415]
[1767665032523,0.01065,93902.0,93883.0,0.03341313]
[1767665032524,0.02338819,93902.0,93883.0,0.03341313]
[1767665032708,0.09724843,93901.0,93882.0,0.09056]
[1767665032907,0.02338819,93898.0,93882.0,0.09056]
[1767665034019,0.09724843,93899.0,93882.0,0.101212]
[1767665034222,0.01065,93899.0,93882.0,0.12397313]
[1767665036619,0.01065,93897.0,93882.0,0.11332113]
[1767665036820,0.01065,93897.0,93882.0,0.09056]
[1767665037119,0.01065,93900.0,93883.0,0.010652]
[1767665037520,0.01065,93898.0,93882.0,0.101212]
[1767665038321,0.01065,93898.0,93882.0,0.1237189]
[1767665039019,0.02180997,93902.0,93884.0,0.010651]
[1767665039620,0.03245897,93902.0,93886.0,0.010651]
[1767665039923,0.02180997,93902.0,93886.0,0.010651]
[1767665040315,0.01065,93901.0,93883.0,0.010652]
[1767665040517,0.01065,93901.0,93883.0,0.0331589]
[1767665041323,0.01065,93898.0,93883.0,0.0331589]
[1767665042023,0.01065,93896.0,93882.0,0.09056]
[1767665042521,0.01065,93899.0,93882.0,0.09056]
[1767665042922,0.01065,93897.0,93882.0,0.09056]
[1767665043129,0.01065,93895.0,93882.0,0.09056]
[1767665043420,0.02163108,93881.0,93862.0,0.09085163]
[1767665043623,0.02163108,93877.0,93857.0,0.18141163]
[1767665043823,0.11409804,93869.0,93850.0,0.09056]
[1767665044019,0.010654,93862.0,93850.0,0.09056]
[1767665044411,0.09809415,93861.0,93843.0,0.09056]
[1767665044724,0.02163108,93861.0,93843.0,0.09056]
[1767665045113,0.09246696,93864.0,93845.0,0.010656]
[1767665046010,0.010654,93866.0,93851.0,0.02306866]
[1767665046221,0.0906,93871.0,93856.0,0.09809415]
[1767665046414,0.11409804,93871.0,93851.0,0.01076329]
[1767665046612,0.02163108,93869.0,93851.0,0.01076329]
[1767665048008,0.03228408,93869.0,93851.0,0.01076329]
[1767665048427,0.02163108,93869.0,93852.0,0.010655]
[1767665049509,0.09246696,93871.0,93852.0,0.113812]
[1767665049714,0.0906,93872.0,93853.0,0.02296037]
[1767665049914,0.0906,93872.0,93860.0,0.09809415]
[1767665050614,0.11223108,93872.0,93860.0,0.09809415]
[1767665050813,0.11223108,93872.0,93857.0,0.010654]
[1767665051424,0.11223108,93872.0,93853.0,0.03361537]
[1767665051612,0.02163108,93871.0,93853.0,0.010655]
[1767665052023,0.02163108,93868.0,93853.0,0.010655]
[1767665052225,0.02163108,93867.0,93851.0,0.00010829]
[1767665052627,0.02163108,93867.0,93852.0,0.010655]
[1767665057726,0.02163108,93867.0,93851.0,0.00010829]
[1767665057925,0.02163108,93866.0,93851.0,0.00010829]
[1767665058230,0.03228508,93866.0,93851.0,0.00010829]
[1767665058620,0.11409804,93865.0,93851.0,0.00010829]
[1767665059428,0.11409804,93865.0,93852.0,0.010655]
[1767665059622,0.02163108,93864.0,93852.0,0.010655]
[1767665060026,0.02163108,93863.0,93851.0,0.00010829]
[1767665061429,0.02163108,93862.0,93851.0,0.00010829]
[1767665061729,0.010654,93860.0,93851.0,0.00010829]
[1767665061934,0.03228508,93860.0,93851.0,0.00010829]
[1767665062228,0.02163108,93856.0,93842.0,0.010656]
[1767665062435,0.02163108,93853.0,93839.0,0.00213132]
[1767665062730,0.02163108,93849.0,93836.0,0.0906]
[1767665063135,0.02163108,93849.0,93836.0,0.101257]
[1767665063316,0.0001076,93848.0,93836.0,0.101257]
[1767665065127,0.0001076,93848.0,93836.0,0.0906]
[1767665065431,0.0001076,93848.0,93839.0,0.010656]
[1767665067126,0.0001076,93848.0,93836.0,0.0906]
[1767665067433,0.0001076,93848.0,93837.0,0.010657]
[1767665068134,0.0001076,93848.0,93836.0,0.0906]
[1767665068336,0.0001076,93848.0,93839.0,0.010657]
[1767665068634,0.0001076,93848.0,93836.0,0.0906]
[1767665068826,0.0001076,93848.0,93839.0,0.010656]
[1767665069925,0.0001076,93848.0,93840.0,0.010656]
[1767665070233,0.0001076,93848.0,93842.0,0.010656]
[1767665070430,0.0001076,93848.0,93836.0,0.0906]
[1767665070431,0.0001076,93848.0,93836.0,0.101257]
[1767665070733,0.02173868,93848.0,93836.0,0.0906]
[1767665071632,0.0001076,93848.0,93836.0,0.0906]
[1767665072334,0.0001076,93848.0,93836.0,0.101257]
[1767665072635,0.0001076,93848.0,93836.0,0.0906]
[1767665074125,0.01951345,93848.0,93836.0,0.0906]
[1767665074938,0.01951345,93848.0,93832.0,0.010657]
[1767665075132,0.0001076,93848.0,93835.0,0.010657]
[1767665077340,0.0001076,93848.0,93830.0,0.02019822]
[1767665077636,0.0001076,93848.0,93830.0,0.11468432]
[1767665078033,0.0001076,93848.0,93834.0,0.010657]
[1767665079141,0.0107636,93848.0,93831.0,0.010657]
[1767665079538,0.0107636,93848.0,93833.0,0.010657]
[1767665079930,0.03016945,93848.0,93833.0,0.010657]
[1767665080125,0.0107636,93848.0,93833.0,0.010657]
[1767665080939,0.0001076,93848.0,93832.0,0.0944861]
[1767665081140,0.0001076,93848.0,93835.0,0.010657]
[1767665081342,0.0107636,93848.0,93832.0,0.010657]
[1767665081537,0.01940585,93843.0,93829.0,0.0906]
[1767665081749,0.0906,93851.0,93821.0,0.010659]
[1767665081750,0.03006185,93840.0,93821.0,0.010659]
[1767665081932,0.010657,93838.0,93821.0,0.03085722]
[1767665082131,0.01940585,93840.0,93821.0,0.03085722]
[1767665082332,0.01940585,93840.0,93823.0,0.010658]
[1767665082531,0.11000585,93841.0,93821.0,0.02019822]
[1767665082733,0.01940585,93840.0,93821.0,0.02019822]
[1767665082936,0.0906,93841.0,93825.0,0.010658]
[1767665083440,0.0906,93841.0,93831.0,0.010657]
[1767665085034,0.00010829,93842.0,93833.0,0.12534132]
[1767665085232,0.00010829,93842.0,93835.0,0.010657]
[1767665085433,0.09064,93848.0,93835.0,0.010657]
[1767665085940,0.01940585,93851.0,93835.0,0.010657]
[1767665086132,0.09064,93850.0,93835.0,0.010657]
[1767665086533,0.09064,93849.0,93831.0,0.02019822]
[1767665087542,0.03590514,93855.0,93838.0,0.010657]
[1767665087737,0.10713929,93855.0,93843.0,0.11468432]
[1767665088042,0.10713929,93855.0,93840.0,0.010656]
[1767665088540,0.10713929,93855.0,93838.0,0.02019822]
[1767665089434,0.10713929,93855.0,93838.0,0.03085522]
[1767665089942,0.10713929,93855.0,93840.0,0.010656]
[1767665091233,0.01649929,93855.0,93840.0,0.010656]
[1767665091537,0.09064,93857.0,93842.0,0.010656]
[1767665092235,0.09064,93857.0,93844.0,0.010656]
[1767665092834,0.01940585,93858.0,93838.0,0.02019822]
[1767665093036,0.03005985,93866.0,93846.0,0.01990116]
[1767665093343,0.09064,93865.0,93846.0,0.01990116]
[1767665093545,0.11004585,93865.0,93846.0,0.01990116]
[1767665093840,0.02803098,93866.0,93849.0,0.010655]
[1767665094047,0.09064,93865.0,93849.0,0.010655]
[1767665094247,0.11004585,93865.0,93849.0,0.010655]
[1767665094445,0.01940585,93864.0,93849.0,0.010655]
[1767665095145,0.01934141,93861.0,93845.0,0.010656]
[1767665096140,0.01934141,93851.0,93839.0,0.09064]
[1767665096344,0.09747163,93860.0,93843.0,0.010656]
[1767665097246,0.09747163,93860.0,93845.0,0.010656]
[1767665097448,0.13419002,93866.0,93850.0,0.010655]
[1767665097639,0.09064,93865.0,93850.0,0.010655]
[1767665097841,0.13419002,93866.0,93850.0,0.010655]
[1767665097842,0.10998141,93864.0,93850.0,0.010655]
[1767665098045,0.01934141,93863.0,93846.0,0.010656]
[1767665099349,0.01934141,93863.0,93845.0,0.01791917]
[1767665099651,0.01934141,93862.0,93842.0,0.01791917]
[1767665099842,0.01934141,93862.0,93849.0,0.010655]
[1767665101449,0.09064,93864.0,93851.0,0.010655]
[1767665101651,0.1094113,93864.0,93851.0,0.010655]
[1767665101959,0.0187713,93864.0,93851.0,0.010655]
[1767665103146,0.01737698,93866.0,93851.0,0.01809583]
[1767665103347,0.01710908,93873.0,93861.0,0.01809583]
[1767665103550,0.010652,93882.0,93864.0,0.01809583]
[1767665103739,0.0187713,93883.0,93864.0,0.01809583]
[1767665103947,0.0187713,93883.0,93868.0,0.010653]
[1767665104340,0.03599125,93883.0,93863.0,0.09011315]
[1767665105251,0.03599125,93883.0,93863.0,0.10820898]
[1767665105457,0.03599125,93883.0,93867.0,0.010653]
[1767665105639,0.0187713,93882.0,93867.0,0.010653]
[1767665106052,0.0187713,93882.0,93869.0,0.010653]
[1767665107959,0.0187713,93882.0,93867.0,0.010653]
[1767665108343,0.0187713,93882.0,93870.0,0.010653]
[1767665108547,0.0187713,93882.0,93867.0,0.010653]
[1767665108951,0.0187713,93880.0,93866.0,0.010654]
[1767665111559,0.0187713,93880.0,93868.0,0.010653]
[1767665111743,0.01721995,93883.0,93870.0,0.010653]
[1767665111948,0.0187713,93883.0,93870.0,0.010653]
[1767665112250,0.0187713,93876.0,93863.0,0.010654]
[1767665112457,0.0187713,93874.0,93863.0,0.010654]
[1767665112647,0.09152163,93875.0,93863.0,0.010654]
[1767665112849,0.11029293,93875.0,93861.0,0.010654]
[1767665113053,0.11029293,93875.0,93863.0,0.010654]
[1767665113255,0.11029293,93875.0,93860.0,0.010654]
[1767665113456,0.11029293,93875.0,93864.0,0.010654]
[1767665113961,0.11029293,93875.0,93861.0,0.010654]
[1767665114261,0.010654,93866.0,93856.0,0.0906]
[1767665114562,0.0187713,93879.0,93862.0,0.010654]
[1767665115153,0.09152163,93880.0,93856.0,0.0906]
[1767665115154,0.0187713,93871.0,93856.0,0.0906]
[1767665115756,0.0187713,93871.0,93856.0,0.101255]
[1767665117058,0.0187713,93875.0,93859.0,0.010654]
[1767665117265,0.10775446,93884.0,93856.0,0.0906]
[1767665117266,0.010652,93882.0,93865.0,0.09817633]
[1767665117563,0.03588576,93884.0,93870.0,0.09817633]
[1767665117759,0.03588576,93884.0,93867.0,0.010653]
[1767665118062,0.03588576,93884.0,93870.0,0.09817633]
[1767665118259,0.0187713,93883.0,93870.0,0.09817633]
[1767665119361,0.0187713,93883.0,93871.0,0.010653]
[1767665119662,0.0187713,93883.0,93870.0,0.09817633]
[1767665121461,0.01756883,93884.0,93870.0,0.09817633]
[1767665121661,0.1093713,93887.0,93870.0,0.09817633]
[1767665122057,0.1093713,93887.0,93874.0,0.010653]
[1767665122058,0.01771548,93887.0,93874.0,0.010653]
[1767665122264,0.0906,93892.0,93877.0,0.10882833]
[1767665122454,0.0187713,93885.0,93873.0,0.010653]
[1767665122655,0.0187713,93888.0,93870.0,0.10882933]
[1767665125169,0.0187713,93888.0,93873.0,0.010653]
[1767665125558,0.010651,93889.0,93873.0,0.010653]
[1767665126063,0.11029293,93890.0,93873.0,0.010653]
[1767665126256,0.0187713,93889.0,93875.0,0.010652]
[1767665126466,0.01754747,93892.0,93880.0,0.010652]
[1767665126661,0.0906,93898.0,93880.0,0.010652]
[1767665126970,0.01065,93897.0,93880.0,0.10882833]
[1767665127170,0.02755553,93897.0,93880.0,0.10882833]
[1767665127361,0.01065,93895.0,93877.0,0.02557711]
[1767665127562,0.01065,93895.0,93880.0,0.09817633]
[1767665127765,0.010651,93893.0,93880.0,0.09817633]
[1767665128063,0.01065,93895.0,93880.0,0.09817633]
[1767665128474,0.01692112,93897.0,93880.0,0.10882833]
[1767665128678,0.00212996,93899.0,93885.0,0.010651]
[1767665129563,0.01964767,93899.0,93885.0,0.010651]
[1767665129863,0.09152163,93898.0,93882.0,0.010652]
[1767665130063,0.03029767,93899.0,93882.0,0.010652]
[1767665130265,0.04906897,93899.0,93882.0,0.010652]
[1767665131076,0.11061086,93894.0,93880.0,0.09817633]
[1767665131370,0.01609893,93893.0,93879.0,0.0906]
[1767665131575,0.01964767,93899.0,93879.0,0.0906]
[1767665131576,0.01609893,93891.0,93879.0,0.0906]
[1767665131974,0.11061086,93882.0,93860.0,0.01393903]
[1767665132175,0.11061086,93882.0,93861.0,0.0906]
[1767665132176,0.02675093,93879.0,93861.0,0.0906]
[1767665132371,0.02675093,93879.0,93862.0,0.010654]
[1767665132572,0.01609893,93879.0,93865.0,0.010654]
[1767665132875,0.11061086,93882.0,93869.0,0.09817633]
[1767665133075,0.11061086,93882.0,93868.0,0.010653]
[1767665133583,0.01609893,93886.0,93870.0,0.09817633]
[1767665133782,0.010651,93885.0,93870.0,0.09817633]
[1767665134379,0.01609893,93884.0,93870.0,0.09817633]
[1767665134979,0.12126186,93888.0,93871.0,0.010653]
[1767665135282,0.11061086,93888.0,93874.0,0.010652]
[1767665135579,0.0906,93887.0,93874.0,0.010652]
[1767665136183,0.10669893,93887.0,93874.0,0.010652]
[1767665137376,0.10669893,93887.0,93871.0,0.010653]
[1767665138582,0.10669893,93887.0,93874.0,0.010653]
[1767665138784,0.01609893,93887.0,93874.0,0.010653]
[1767665139972,0.01065,93894.0,93877.0,0.09817633]
[1767665140175,0.010651,93892.0,93876.0,0.010652]
[1767665140484,0.02674993,93892.0,93876.0,0.010652]
[1767665140675,0.01609893,93891.0,93876.0,0.010652]
[1767665141279,0.010651,93888.0,93870.0,0.12227868]
[1767665141578,0.02674993,93888.0,93872.0,0.010653]
[1767665142691,0.01609893,93888.0,93872.0,0.010653]
[1767665144286,0.01609893,93888.0,93874.0,0.010653]
[1767665145774,0.01609893,93892.0,93877.0,0.010652]
[1767665145972,0.01609893,93892.0,93870.0,0.11081531]
[1767665145973,0.01609893,93892.0,93879.0,0.010652]
[1767665146173,0.01964767,93899.0,93884.0,0.010651]
[1767665146373,0.03029767,93899.0,93884.0,0.010651]
[1767665146986,0.01609893,93898.0,93884.0,0.010651]
[1767665147186,0.01609893,93898.0,93881.0,0.010652]
[1767665147588,0.01609893,93898.0,93884.0,0.010651]
[1767665148587,0.01609893,93898.0,93886.0,0.010651]
[1767665148884,0.0906,93902.0,93889.0,0.010651]
[1767665149483,0.10849798,93902.0,93889.0,0.010651]
[1767665150192,0.01789798,93902.0,93889.0,0.010651]
[1767665150385,0.0906,93906.0,93889.0,0.010651]
[1767665150689,0.01609893,93905.0,93889.0,0.010651]
[1767665150891,0.02674793,93905.0,93886.0,0.02295978]
[1767665151081,0.04423017,93905.0,93886.0,0.02295978]
[1767665151387,0.03358117,93905.0,93886.0,0.02295978]
[1767665151692,0.01609893,93900.0,93883.0,0.010652]
[1767665151892,0.01609893,93898.0,93885.0,0.010651]
[1767665152283,0.01609893,93902.0,93885.0,0.010651]
[1767665152483,0.01609893,93902.0,93881.0,0.10771669]
[1767665152991,0.01609893,93902.0,93882.0,0.01209597]
[1767665153882,0.01609893,93902.0,93882.0,0.10269597]
[1767665154283,0.01609893,93902.0,93886.0,0.010651]
[1767665154692,0.01609893,93902.0,93882.0,0.10269597]
[1767665155584,0.01609893,93902.0,93882.0,0.19421717]
[1767665155785,0.01609893,93902.0,93883.0,0.01147002]
[1767665156186,0.01609893,93902.0,93890.0,0.10882733]
[1767665156387,0.01748224,93905.0,93893.0,0.01065]
[1767665156582,0.0906,93906.0,93895.0,0.01065]
[1767665156993,0.01636093,93909.0,93886.0,0.0112971]
[1767665156994,0.0957547,93916.0,93901.0,0.010649]
[1767665157290,0.0957547,93916.0,93896.0,0.09817633]
[1767665157291,0.010648,93913.0,93896.0,0.0112971]
[1767665157599,0.01636093,93912.0,93894.0,0.1021712]
[1767665157999,0.010649,93907.0,93890.0,0.09817633]
[1767665158201,0.01636093,93906.0,93890.0,0.10882733]
[1767665158904,0.11211563,93909.0,93893.0,0.01065]
[1767665160388,0.11211563,93909.0,93890.0,0.10882733]
[1767665160389,0.010649,93908.0,93890.0,0.10882733]
[1767665160593,0.02700993,93906.0,93890.0,0.10882733]
[1767665160793,0.01636093,93905.0,93890.0,0.10882733]
[1767665161002,0.01706589,93897.0,93885.0,0.0906]
[1767665161208,0.010649,93908.0,93859.0,0.010654]
[1767665161209,0.010649,93906.0,93887.0,0.21842089]
[1767665161507,0.02771489,93904.0,93890.0,0.09817633]
[1767665162008,0.01706589,93903.0,93890.0,0.09817633]
[1767665162306,0.010649,93902.0,93890.0,0.09817633]
[1767665162606,0.02771489,93902.0,93890.0,0.09817633]
[1767665162798,0.02771489,93902.0,93886.0,0.010651]
[1767665163805,0.01065,93897.0,93882.0,0.1046568]
[1767665164002,0.01065,93897.0,93882.0,0.0906]
[1767665164194,0.01065,93897.0,93882.0,0.101252]
[1767665164812,0.01706589,93899.0,93882.0,0.101252]
[1767665165109,0.09523508,93896.0,93882.0,0.0906]
[1767665165512,0.01065,93897.0,93882.0,0.0906]
[1767665167114,0.01706589,93899.0,93882.0,0.101252]
[1767665167312,0.01065,93896.0,93882.0,0.0906]
[1767665168618,0.10588408,93902.0,93883.0,0.02416444]
[1767665168800,0.010649,93902.0,93885.0,0.01351244]
[1767665169000,0.010649,93902.0,93884.0,0.0953652]
[1767665169198,0.01065,93900.0,93885.0,0.010651]
[1767665169399,0.01065,93900.0,93884.0,0.0953652]
[1767665170217,0.01065,93900.0,93884.0,0.1060162]
[1767665173313,0.01065,93898.0,93884.0,0.0953652]
[1767665174320,0.01065,93902.0,93885.0,0.010651]
[1767665174907,0.01065,93900.0,93884.0,0.0953652]
[1767665175220,0.01065,93898.0,93884.0,0.0953652]
[1767665176121,0.01706589,93897.0,93878.0,0.0953652]
[1767665176311,0.010652,93881.0,93867.0,0.09056]
[1767665176511,0.01706589,93885.0,93867.0,0.101213]
[1767665176718,0.010652,93883.0,93867.0,0.101213]
[1767665178315,0.01706589,93885.0,93867.0,0.101213]
[1767665178625,0.01706589,93885.0,93869.0,0.01278364]
[1767665179016,0.010651,93892.0,93876.0,0.01166501]
[1767665179216,0.010651,93892.0,93877.0,0.01166501]
[1767665179427,0.010651,93892.0,93876.0,0.0953652]
[1767665180026,0.010651,93892.0,93877.0,0.010652]
[1767665180230,0.010651,93890.0,93876.0,0.0953652]
[1767665180426,0.010652,93884.0,93869.0,0.00213064]
[1767665180813,0.010652,93884.0,93869.0,0.01346155]
[1767665182624,0.09523508,93892.0,93869.0,0.09749584]
[1767665182927,0.010651,93891.0,93872.0,0.010653]
[1767665183126,0.010651,93889.0,93872.0,0.010653]
[1767665184530,0.01706589,93891.0,93870.0,0.01095794]
[1767665184830,0.010651,93887.0,93871.0,0.010653]
[1767665188332,0.010651,93885.0,93871.0,0.010653]
[1767665189135,0.010651,93885.0,93870.0,0.01095794]
[1767665190431,0.010651,93888.0,93871.0,0.010653]
[1767665190831,0.010651,93886.0,93871.0,0.010653]
[1767665191737,0.01706589,93891.0,93870.0,0.01095794]
[1767665191926,0.01586101,93890.0,93870.0,0.10942808]
[1767665192229,0.01586101,93890.0,93871.0,0.0095077]
[1767665193131,0.02651301,93878.0,93860.0,0.0906]
[1767665193338,0.02651301,93878.0,93862.0,0.010654]
[1767665193632,0.01586101,93878.0,93862.0,0.010654]
[1767665193836,0.09084269,93880.0,93860.0,0.09979105]
[1767665194229,0.010652,93881.0,93862.0,0.00919105]
[1767665194429,0.01586101,93882.0,93866.0,0.010653]
[1767665194942,0.02651301,93882.0,93866.0,0.010653]
[1767665199045,0.010652,93882.0,93866.0,0.010653]
[1767665199544,0.0906,93884.0,93868.0,0.010653]
[1767665199743,0.10646101,93884.0,93868.0,0.010653]
[1767665199946,0.01586101,93883.0,93868.0,0.010653]
[1767665200430,0.02651301,93883.0,93868.0,0.010653]
[1767665202640,0.02651301,93883.0,93865.0,0.010654]
[1767665203137,0.010652,93881.0,93865.0,0.010654]
[1767665204650,0.0906,93884.0,93868.0,0.010653]
[1767665204850,0.10646101,93884.0,93868.0,0.010653]
[1767665205147,0.0906,93884.0,93870.0,0.010653]
[1767665205347,0.0906,93884.0,93866.0,0.10534146]
[1767665206244,0.01065,93894.0,93874.0,0.010653]